[Event "*** Titled Tuesday Blitz"]
[Site "Chess.com"]
[Date "2021.03.09"]
[Round "11"]
[White "BashirliSaadat"]
[Black "Alex-11211"]
[Result "0-1"]
[WhiteElo "2202"]
[BlackElo "2417"]
[TimeControl "180+1"]
[EndTime "12:10:49 PST"]
[Termination "Alex-11211 won by checkmate"]

1. e4 {[%clk 0:03:00.9]} 1... g6 {[%clk 0:03:00.9]} 2. d4 {[%clk 0:03:00.6]}
2... Bg7 {[%clk 0:03:01.8]} 3. Nc3 {[%clk 0:03:00.3]} 3... c5 {[%clk 0:03:02.3]}
4. Be3 {[%clk 0:02:58.9]} 4... Qb6 {[%clk 0:03:01.7]} 5. Nd5 {[%clk 0:02:50.9]}
5... Qa5+ {[%clk 0:02:31.1]} 6. Bd2 {[%clk 0:02:42]} 6... Qd8 {[%clk 0:02:19.9]}
7. Be3 {[%clk 0:02:32.8]} 7... e6 {[%clk 0:02:03.2]} 8. Nc3 {[%clk 0:02:29.2]}
8... Qb6 {[%clk 0:01:52.3]} 9. Na4 {[%clk 0:02:21.2]} 9... Qa5+ {[%clk
0:01:43.3]} 10. c3 {[%clk 0:02:19.7]} 10... d6 {[%clk 0:01:34.5]} 11. b3 {[%clk
0:01:26.4]} 11... b5 {[%clk 0:01:24.5]} 12. Nb2 {[%clk 0:01:23.2]} 12... Qxc3+
{[%clk 0:01:18.9]} 13. Qd2 {[%clk 0:01:23]} 13... Qxd2+ {[%clk 0:01:15.9]} 14.
Bxd2 {[%clk 0:01:23.9]} 14... a6 {[%clk 0:01:11.3]} 15. e5 {[%clk 0:01:14.3]}
15... Nc6 {[%clk 0:00:55.7]} 16. exd6 {[%clk 0:01:08.6]} 16... Nxd4 {[%clk
0:00:54.6]} 17. Bd3 {[%clk 0:01:06.6]} 17... Bb7 {[%clk 0:00:51.6]} 18. f3
{[%clk 0:01:03]} 18... Nf6 {[%clk 0:00:40.1]} 19. Ne2 {[%clk 0:00:55.5]} 19...
Nd5 {[%clk 0:00:38.3]} 20. Nxd4 {[%clk 0:00:48.8]} 20... Bxd4 {[%clk 0:00:39.2]}
21. Rb1 {[%clk 0:00:48]} 21... Kd7 {[%clk 0:00:37.2]} 22. Be4 {[%clk 0:00:43.6]}
22... f5 {[%clk 0:00:32.3]} 23. Bd3 {[%clk 0:00:40.1]} 23... Kxd6 {[%clk
0:00:30.8]} 24. a4 {[%clk 0:00:37.4]} 24... Bc6 {[%clk 0:00:29.5]} 25. a5 {[%clk
0:00:34.3]} 25... Nc3 {[%clk 0:00:21.1]} 26. Bxc3 {[%clk 0:00:32.1]} 26... Bxc3+
{[%clk 0:00:22]} 27. Ke2 {[%clk 0:00:32.3]} 27... Bxa5 {[%clk 0:00:20.6]} 28.
Rhd1 {[%clk 0:00:31.3]} 28... Kc7 {[%clk 0:00:19.2]} 29. Rdc1 {[%clk 0:00:30.5]}
29... Bb4 {[%clk 0:00:18.6]} 30. Nd1 {[%clk 0:00:26.6]} 30... e5 {[%clk
0:00:18]} 31. Ne3 {[%clk 0:00:23.3]} 31... Rad8 {[%clk 0:00:17.7]} 32. Rd1
{[%clk 0:00:20.5]} 32... Kb6 {[%clk 0:00:17.3]} 33. Bc2 {[%clk 0:00:19.5]} 33...
Rd4 {[%clk 0:00:17.1]} 34. Rxd4 {[%clk 0:00:18.6]} 34... exd4 {[%clk 0:00:18]}
35. Nf1 {[%clk 0:00:18.7]} 35... Re8+ {[%clk 0:00:18.6]} 36. Kf2 {[%clk
0:00:17.8]} 36... a5 {[%clk 0:00:14.3]} 37. Ng3 {[%clk 0:00:17.6]} 37... Bd5
{[%clk 0:00:11.9]} 38. Ne2 {[%clk 0:00:16]} 38... Kc6 {[%clk 0:00:10.1]} 39. Nf4
{[%clk 0:00:16.4]} 39... Bf7 {[%clk 0:00:10.3]} 40. Nd3 {[%clk 0:00:16.6]} 40...
Bc3 {[%clk 0:00:10.1]} 41. Nf4 {[%clk 0:00:15.8]} 41... Bd2 {[%clk 0:00:08.5]}
42. Nd3 {[%clk 0:00:15.2]} 42... Be3+ {[%clk 0:00:08.8]} 43. Kf1 {[%clk
0:00:14.1]} 43... c4 {[%clk 0:00:09.4]} 44. bxc4 {[%clk 0:00:13.5]} 44... Bxc4
{[%clk 0:00:10.3]} 45. Rd1 {[%clk 0:00:13.2]} 45... a4 {[%clk 0:00:10.3]} 46. f4
{[%clk 0:00:11.2]} 46... b4 {[%clk 0:00:10.5]} 47. Re1 {[%clk 0:00:07.6]} 47...
b3 {[%clk 0:00:10.4]} 48. Bb1 {[%clk 0:00:07.1]} 48... a3 {[%clk 0:00:09.1]} 49.
Ke2 {[%clk 0:00:03.9]} 49... a2 {[%clk 0:00:08.3]} 50. Bxa2 {[%clk 0:00:02.9]}
50... bxa2 {[%clk 0:00:08.1]} 51. Kd1 {[%clk 0:00:03.3]} 51... a1=Q+ {[%clk
0:00:06.2]} 52. Kc2 {[%clk 0:00:03.9]} 52... Qc3+ {[%clk 0:00:06]} 53. Kb1
{[%clk 0:00:03.3]} 53... Bxd3+ {[%clk 0:00:06.9]} 54. Ka2 {[%clk 0:00:03.4]}
54... Ra8# {[%clk 0:00:07.8]} 0-1

[Event "*** Titled Tuesday Blitz"]
[Site "Chess.com"]
[Date "2021.03.09"]
[Round "11"]
[White "DarZay"]
[Black "allvim"]
[Result "1-0"]
[WhiteElo "2175"]
[BlackElo "2322"]
[TimeControl "180+1"]
[EndTime "12:10:51 PST"]
[Termination "DarZay won by resignation"]

1. e4 {[%clk 0:03:00.9]} 1... c5 {[%clk 0:02:56.8]} 2. Nf3 {[%clk 0:03:00.4]}
2... d6 {[%clk 0:02:57]} 3. d4 {[%clk 0:02:59.6]} 3... cxd4 {[%clk 0:02:56.9]}
4. Nxd4 {[%clk 0:03:00]} 4... Nf6 {[%clk 0:02:57.5]} 5. Nc3 {[%clk 0:03:00.2]}
5... a6 {[%clk 0:02:57.7]} 6. f3 {[%clk 0:02:54.4]} 6... e5 {[%clk 0:02:56.1]}
7. Nb3 {[%clk 0:02:53.7]} 7... h5 {[%clk 0:02:56.8]} 8. Be3 {[%clk 0:02:51]}
8... Be6 {[%clk 0:02:57.2]} 9. Qd2 {[%clk 0:02:50.8]} 9... Nbd7 {[%clk
0:02:57.8]} 10. Nd5 {[%clk 0:02:48.1]} 10... Bxd5 {[%clk 0:02:53.4]} 11. exd5
{[%clk 0:02:48.2]} 11... b5 {[%clk 0:02:50.3]} 12. O-O-O {[%clk 0:02:37.4]}
12... Rc8 {[%clk 0:02:49.1]} 13. Kb1 {[%clk 0:02:35]} 13... Qc7 {[%clk
0:02:49.1]} 14. g3 {[%clk 0:02:18.1]} 14... Be7 {[%clk 0:02:49]} 15. Bh3 {[%clk
0:02:17.5]} 15... O-O {[%clk 0:02:34.6]} 16. f4 {[%clk 0:02:11.7]} 16... Rb8
{[%clk 0:01:26.1]} 17. Rhg1 {[%clk 0:01:58.7]} 17... Ng4 {[%clk 0:00:51.1]} 18.
Bxg4 {[%clk 0:01:31.8]} 18... hxg4 {[%clk 0:00:52]} 19. f5 {[%clk 0:01:22.8]}
19... Nb6 {[%clk 0:00:47.8]} 20. Bxb6 {[%clk 0:01:19.6]} 20... Qxb6 {[%clk
0:00:44]} 21. h3 {[%clk 0:01:10.4]} 21... Qd8 {[%clk 0:00:12]} 22. hxg4 {[%clk
0:01:07.5]} 22... Bg5 {[%clk 0:00:12.5]} 23. Qh2 {[%clk 0:01:06.4]} 23... f6
{[%clk 0:00:10.8]} 24. Qh5 {[%clk 0:01:04.8]} 24... Qe8 {[%clk 0:00:09.7]} 25.
Qh3 {[%clk 0:01:03]} 25... Qf7 {[%clk 0:00:08.3]} 26. Rh1 {[%clk 0:01:00.4]}
26... Bh6 {[%clk 0:00:08.3]} 27. Na5 {[%clk 0:00:38.4]} 27... Rbc8 {[%clk
0:00:08.7]} 28. Nc6 {[%clk 0:00:38.2]} 28... Rc7 {[%clk 0:00:09.1]} 29. Qg2
{[%clk 0:00:36.8]} 29... Rfc8 {[%clk 0:00:08.5]} 30. Rh4 {[%clk 0:00:31.3]}
30... Bg5 {[%clk 0:00:06.4]} 31. Rh5 {[%clk 0:00:30.7]} 31... Bh6 {[%clk
0:00:06.8]} 32. Rdh1 {[%clk 0:00:26.8]} 32... Re8 {[%clk 0:00:07.3]} 33. g5
{[%clk 0:00:24]} 33... fxg5 {[%clk 0:00:06.9]} 34. g4 {[%clk 0:00:22.8]} 34...
e4 {[%clk 0:00:06.7]} 35. Qh2 {[%clk 0:00:21.9]} 35... Qxd5 {[%clk 0:00:03.4]}
36. Rxh6 {[%clk 0:00:11.6]} 36... gxh6 {[%clk 0:00:04.3]} 37. Qxh6 {[%clk
0:00:11.7]} 37... Rg7 {[%clk 0:00:05.1]} 38. Qh8+ {[%clk 0:00:09.8]} 38... Kf7
{[%clk 0:00:05.4]} 39. Qh5+ {[%clk 0:00:09.9]} 39... Kg8 {[%clk 0:00:04.6]} 40.
f6 {[%clk 0:00:09.4]} 40... Qxc6 {[%clk 0:00:02.6]} 41. Qh8+ {[%clk 0:00:08.2]}
41... Kf7 {[%clk 0:00:02.8]} 42. fxg7 {[%clk 0:00:04.7]} 42... Rxh8 {[%clk
0:00:01.4]} 43. gxh8=Q {[%clk 0:00:04.4]} 43... e3 {[%clk 0:00:02.3]} 44. Rf1+
{[%clk 0:00:03.9]} 44... Ke6 {[%clk 0:00:03.2]} 45. Qf6+ {[%clk 0:00:03.6]}
45... Kd5 {[%clk 0:00:04.1]} 46. Qf3+ {[%clk 0:00:03.4]} 46... Kc5 {[%clk
0:00:04.3]} 47. b4+ {[%clk 0:00:02.6]} 47... Kb6 {[%clk 0:00:04.4]} 48. Qxc6+
{[%clk 0:00:03.3]} 48... Kxc6 {[%clk 0:00:05.3]} 49. Re1 {[%clk 0:00:03.7]}
49... d5 {[%clk 0:00:06.2]} 50. Rxe3 {[%clk 0:00:03.9]} 50... d4 {[%clk
0:00:07.1]} 51. Rd3 {[%clk 0:00:04.3]} 51... Kd5 {[%clk 0:00:08]} 52. Kb2 {[%clk
0:00:04.6]} 52... Kc4 {[%clk 0:00:08.6]} 53. a3 {[%clk 0:00:04.2]} 53... Kd5
{[%clk 0:00:09.1]} 54. Kc1 {[%clk 0:00:04.7]} 54... Ke4 {[%clk 0:00:09.7]} 55.
Kd2 {[%clk 0:00:05.1]} 1-0

[Event "*** Titled Tuesday Blitz"]
[Site "Chess.com"]
[Date "2021.03.09"]
[Round "11"]
[White "Supernotar"]
[Black "AliKa2810"]
[Result "1/2-1/2"]
[WhiteElo "2712"]
[BlackElo "2556"]
[TimeControl "180+1"]
[EndTime "12:10:52 PST"]
[Termination "Game drawn by agreement"]

1. d4 {[%clk 0:03:00.9]} 1... d5 {[%clk 0:02:59.6]} 2. c4 {[%clk 0:03:00.8]}
2... c6 {[%clk 0:03:00.2]} 3. e3 {[%clk 0:03:01.1]} 3... Nf6 {[%clk 0:03:00]} 4.
Bd3 {[%clk 0:03:01.2]} 4... e5 {[%clk 0:02:57.7]} 5. Nc3 {[%clk 0:03:00.2]} 5...
e4 {[%clk 0:02:57.3]} 6. Bc2 {[%clk 0:03:00.1]} 6... Bb4 {[%clk 0:02:50.1]} 7.
f3 {[%clk 0:02:58.1]} 7... O-O {[%clk 0:02:48.1]} 8. fxe4 {[%clk 0:02:57.9]}
8... Nxe4 {[%clk 0:02:47.7]} 9. Ne2 {[%clk 0:02:56.9]} 9... Bxc3+ {[%clk
0:02:43.2]} 10. bxc3 {[%clk 0:02:56.6]} 10... Bg4 {[%clk 0:02:30.2]} 11. Qd3
{[%clk 0:02:28.5]} 11... Nd7 {[%clk 0:01:53.4]} 12. O-O {[%clk 0:02:23.7]} 12...
Bxe2 {[%clk 0:01:32.8]} 13. Qxe2 {[%clk 0:02:24.6]} 13... Nxc3 {[%clk
0:01:33.4]} 14. Qd3 {[%clk 0:02:24]} 14... Ne4 {[%clk 0:01:33]} 15. Ba3 {[%clk
0:02:21.8]} 15... Re8 {[%clk 0:01:32.2]} 16. cxd5 {[%clk 0:02:22.1]} 16... cxd5
{[%clk 0:01:32.1]} 17. Rf5 {[%clk 0:02:19]} 17... Ndf6 {[%clk 0:01:17.1]} 18.
Raf1 {[%clk 0:02:18.7]} 18... Rc8 {[%clk 0:01:17.6]} 19. Bb3 {[%clk 0:02:12.5]}
19... Rc3 {[%clk 0:01:12.5]} 20. Qe2 {[%clk 0:02:07.2]} 20... Qb6 {[%clk
0:01:06.8]} 21. Bb2 {[%clk 0:01:53.6]} 21... Rc7 {[%clk 0:01:03.3]} 22. g4
{[%clk 0:01:30.7]} 22... Nc3 {[%clk 0:00:53.2]} 23. Qf3 {[%clk 0:01:24.3]} 23...
Nxa2 {[%clk 0:00:52.2]} 24. Bxa2 {[%clk 0:01:15.1]} 24... Qxb2 {[%clk
0:00:51.8]} 25. Bxd5 {[%clk 0:01:08]} 25... Qd2 {[%clk 0:00:33.7]} 26. e4 {[%clk
0:00:42.2]} 26... Qxd4+ {[%clk 0:00:30.8]} 27. Kh1 {[%clk 0:00:42.4]} 27... Rc3
{[%clk 0:00:30.1]} 28. Qf4 {[%clk 0:00:31.8]} 28... Nxd5 {[%clk 0:00:26.3]} 29.
Rxd5 {[%clk 0:00:32.7]} 29... Qf6 {[%clk 0:00:20.7]} 30. Rf5 {[%clk 0:00:31.5]}
30... Qe6 {[%clk 0:00:16.3]} 31. Rxf7 {[%clk 0:00:30.5]} 31... h6 {[%clk
0:00:15.9]} 32. Rxb7 {[%clk 0:00:25.9]} 32... Qxe4+ {[%clk 0:00:14.8]} 33. Qxe4
{[%clk 0:00:25.3]} 33... Rxe4 {[%clk 0:00:15.7]} 34. Rxa7 {[%clk 0:00:21.4]}
34... Rxg4 {[%clk 0:00:15.8]} 35. Rg1 {[%clk 0:00:20.8]} 35... Rxg1+ {[%clk
0:00:14.1]} 36. Kxg1 {[%clk 0:00:21.7]} 36... Rc2 {[%clk 0:00:14.5]} 37. Rb7
{[%clk 0:00:20.8]} 37... Kh7 {[%clk 0:00:15]} 38. Rb6 {[%clk 0:00:20.9]} 38...
h5 {[%clk 0:00:15.6]} 39. Rd6 {[%clk 0:00:20.3]} 39... g6 {[%clk 0:00:15.9]} 40.
Rd3 {[%clk 0:00:19.6]} 40... Kh6 {[%clk 0:00:16.3]} 41. Re3 {[%clk 0:00:19.5]}
41... h4 {[%clk 0:00:16.6]} 42. Re5 {[%clk 0:00:19.2]} 42... g5 {[%clk
0:00:16.6]} 43. Re4 {[%clk 0:00:19.6]} 43... Kh5 {[%clk 0:00:16.9]} 44. Rd4
{[%clk 0:00:19.9]} 44... Kg6 {[%clk 0:00:17.2]} 45. Rd5 {[%clk 0:00:19.7]} 45...
Re2 {[%clk 0:00:16.9]} 46. Rc5 {[%clk 0:00:19.5]} 46... Kf6 {[%clk 0:00:17]} 47.
Rb5 {[%clk 0:00:19.5]} 47... Re5 {[%clk 0:00:17.2]} 48. Rb2 {[%clk 0:00:17]}
48... Kf5 {[%clk 0:00:17.4]} 49. Kg2 {[%clk 0:00:17.2]} 49... g4 {[%clk
0:00:16.8]} 50. Rf2+ {[%clk 0:00:16.4]} 50... Kg5 {[%clk 0:00:16.6]} 51. Rd2
{[%clk 0:00:16]} 51... Re4 {[%clk 0:00:15]} 52. Ra2 {[%clk 0:00:13.6]} 52... Kf4
{[%clk 0:00:14.3]} 53. Rf2+ {[%clk 0:00:12.8]} 53... Ke3 {[%clk 0:00:14.3]} 54.
Rf8 {[%clk 0:00:11.5]} 54... Rf4 {[%clk 0:00:08.8]} 55. Re8+ {[%clk 0:00:10.8]}
55... Kd3 {[%clk 0:00:07.7]} 56. Rh8 {[%clk 0:00:10.6]} 56... g3 {[%clk
0:00:05.9]} 57. hxg3 {[%clk 0:00:09.3]} 57... hxg3 {[%clk 0:00:06.4]} 58. Kxg3
{[%clk 0:00:09.6]} 58... Rd4 {[%clk 0:00:06.6]} 1/2-1/2

[Event "*** Titled Tuesday Blitz"]
[Site "Chess.com"]
[Date "2021.03.09"]
[Round "11"]
[White "GigaQuparadze"]
[Black "jposthuma"]
[Result "0-1"]
[WhiteElo "2933"]
[BlackElo "2692"]
[TimeControl "180+1"]
[EndTime "12:10:53 PST"]
[Termination "jposthuma won by resignation"]

1. e4 {[%clk 0:03:00.9]} 1... c6 {[%clk 0:02:48.8]} 2. d4 {[%clk 0:03:00.7]}
2... d5 {[%clk 0:02:45]} 3. Nc3 {[%clk 0:03:01.6]} 3... dxe4 {[%clk 0:02:45.1]}
4. Nxe4 {[%clk 0:03:02.5]} 4... Nf6 {[%clk 0:02:43.5]} 5. Nxf6+ {[%clk
0:03:02.5]} 5... gxf6 {[%clk 0:02:44.4]} 6. Nf3 {[%clk 0:03:01.9]} 6... Bg4
{[%clk 0:02:44.3]} 7. c3 {[%clk 0:03:00.5]} 7... Qc7 {[%clk 0:02:44.3]} 8. Bc4
{[%clk 0:02:58.3]} 8... e6 {[%clk 0:02:41.3]} 9. h3 {[%clk 0:02:50.3]} 9... Bh5
{[%clk 0:02:40.6]} 10. Qe2 {[%clk 0:02:50]} 10... Nd7 {[%clk 0:02:38.6]} 11. d5
{[%clk 0:02:43.2]} 11... cxd5 {[%clk 0:02:32.9]} 12. Bxd5 {[%clk 0:02:43.6]}
12... O-O-O {[%clk 0:02:29.6]} 13. Be4 {[%clk 0:02:43.7]} 13... f5 {[%clk
0:02:24.4]} 14. Bc2 {[%clk 0:02:43.4]} 14... Bg7 {[%clk 0:02:08.9]} 15. Bd2
{[%clk 0:02:38.4]} 15... Ne5 {[%clk 0:02:07.7]} 16. O-O-O {[%clk 0:02:38]} 16...
Nxf3 {[%clk 0:02:00.8]} 17. gxf3 {[%clk 0:02:38.9]} 17... Qc6 {[%clk 0:01:59.5]}
18. Qe3 {[%clk 0:02:37.3]} 18... Bxf3 {[%clk 0:01:55.7]} 19. Rhg1 {[%clk
0:02:37.2]} 19... Bxd1 {[%clk 0:01:54.6]} 20. Bxd1 {[%clk 0:02:37.2]} 20... Bd4
{[%clk 0:01:52.7]} 21. Qe2 {[%clk 0:02:32.5]} 21... Bb6 {[%clk 0:01:47.1]} 22.
Rg7 {[%clk 0:02:29.1]} 22... Rd7 {[%clk 0:01:43.6]} 23. Bg5 {[%clk 0:02:21.1]}
23... Qe4 {[%clk 0:01:32.5]} 24. Qf1 {[%clk 0:02:15.2]} 24... Bd8 {[%clk
0:01:19.1]} 25. Be3 {[%clk 0:02:11.5]} 25... Bf6 {[%clk 0:01:14.1]} 26. Rg1
{[%clk 0:02:10.4]} 26... Rhd8 {[%clk 0:01:03.2]} 27. Bc2 {[%clk 0:02:10.5]}
27... Qd5 {[%clk 0:00:57.7]} 28. Kb1 {[%clk 0:02:05.2]} 28... Kb8 {[%clk
0:00:58.2]} 29. a3 {[%clk 0:02:03.6]} 29... Qc6 {[%clk 0:00:53.4]} 30. Qe2
{[%clk 0:02:02.2]} 30... Rd5 {[%clk 0:00:39.9]} 31. Bc1 {[%clk 0:01:58.8]} 31...
Rc5 {[%clk 0:00:32.4]} 32. Be3 {[%clk 0:01:43.8]} 32... Rxc3 {[%clk 0:00:20.6]}
33. Bf4+ {[%clk 0:01:37.1]} 33... Ka8 {[%clk 0:00:20.4]} 34. Rd1 {[%clk
0:01:29.4]} 34... Rxd1+ {[%clk 0:00:19.3]} 35. Bxd1 {[%clk 0:01:30.1]} 35... Rc4
{[%clk 0:00:17.9]} 36. Be3 {[%clk 0:01:29.2]} 36... Qe4+ {[%clk 0:00:17]} 37.
Ka2 {[%clk 0:01:29.5]} 37... Rc8 {[%clk 0:00:14.3]} 38. Qd2 {[%clk 0:01:15.7]}
38... Qd5+ {[%clk 0:00:13.6]} 39. Qxd5 {[%clk 0:01:15.7]} 39... exd5 {[%clk
0:00:14.5]} 40. Kb1 {[%clk 0:01:16.2]} 40... Be5 {[%clk 0:00:14.1]} 41. Bc2
{[%clk 0:01:15.9]} 41... f4 {[%clk 0:00:14.6]} 42. Bd2 {[%clk 0:01:16]} 42... h6
{[%clk 0:00:14.8]} 43. Bf5 {[%clk 0:01:14.9]} 43... Rg8 {[%clk 0:00:15]} 44. Bg4
{[%clk 0:01:14.9]} 44... Kb8 {[%clk 0:00:15.6]} 45. Kc2 {[%clk 0:01:12.1]} 45...
Kc7 {[%clk 0:00:15.4]} 46. b3 {[%clk 0:01:11.3]} 46... Bd6 {[%clk 0:00:14.3]}
47. a4 {[%clk 0:01:10]} 47... Rg5 {[%clk 0:00:13.3]} 48. Kd3 {[%clk 0:01:09.5]}
48... f5 {[%clk 0:00:13.6]} 49. Bf3 {[%clk 0:01:09.8]} 49... Kc6 {[%clk
0:00:12.6]} 50. Kd4 {[%clk 0:01:06.6]} 50... Bc5+ {[%clk 0:00:12.1]} 51. Ke5
{[%clk 0:01:06.6]} 51... Bxf2 {[%clk 0:00:10.6]} 52. Bxd5+ {[%clk 0:01:04.5]}
52... Kc7 {[%clk 0:00:10.5]} 53. Bxf4 {[%clk 0:01:04.3]} 53... Bg3 {[%clk
0:00:10.4]} 54. Be6 {[%clk 0:01:00.2]} 54... Bxf4+ {[%clk 0:00:10]} 55. Kxf4
{[%clk 0:01:01.1]} 55... Kd6 {[%clk 0:00:08.5]} 56. Bxf5 {[%clk 0:01:00.3]}
56... Kc5 {[%clk 0:00:08.5]} 57. h4 {[%clk 0:00:55.6]} 57... Rg1 {[%clk
0:00:08.2]} 58. Be6 {[%clk 0:00:55.6]} 58... Kb4 {[%clk 0:00:08.5]} 59. Kf5
{[%clk 0:00:55.4]} 59... a5 {[%clk 0:00:08.7]} 60. Bd5 {[%clk 0:00:53.7]} 60...
b6 {[%clk 0:00:09]} 61. Kf4 {[%clk 0:00:54.1]} 61... Rd1 {[%clk 0:00:08.3]} 62.
Bg8 {[%clk 0:00:53.4]} 62... Rd4+ {[%clk 0:00:08.3]} 63. Kg3 {[%clk 0:00:52.4]}
63... Ka3 {[%clk 0:00:04.6]} 64. h5 {[%clk 0:00:51.4]} 64... Rb4 {[%clk
0:00:04.3]} 65. Bf7 {[%clk 0:00:51.7]} 65... Rxb3+ {[%clk 0:00:03.6]} 66. Kg4
{[%clk 0:00:52.2]} 66... Rb4+ {[%clk 0:00:02.3]} 67. Kf5 {[%clk 0:00:52.2]}
67... Rxa4 {[%clk 0:00:02.4]} 68. Kg6 {[%clk 0:00:52.5]} 68... Rh4 {[%clk
0:00:03.1]} 69. Kxh6 {[%clk 0:00:52.6]} 69... b5 {[%clk 0:00:03.4]} 70. Kg5
{[%clk 0:00:52.9]} 70... Rh2 {[%clk 0:00:03.3]} 71. h6 {[%clk 0:00:51.9]} 71...
Rxh6 {[%clk 0:00:03.9]} 72. Kxh6 {[%clk 0:00:52.1]} 72... Kb2 {[%clk 0:00:04.3]}
73. Kg5 {[%clk 0:00:52.1]} 73... b4 {[%clk 0:00:04.5]} 74. Kf4 {[%clk 0:00:53]}
74... a4 {[%clk 0:00:05]} 75. Ke3 {[%clk 0:00:52.8]} 75... b3 {[%clk 0:00:05.2]}
76. Kd4 {[%clk 0:00:50.8]} 76... a3 {[%clk 0:00:05.6]} 77. Kc4 {[%clk
0:00:51.1]} 77... a2 {[%clk 0:00:05.7]} 78. Kb5 {[%clk 0:00:51.8]} 78... a1=Q
{[%clk 0:00:05.9]} 79. Bxb3 {[%clk 0:00:52.7]} 79... Kxb3 {[%clk 0:00:06]} 0-1

[Event "*** Titled Tuesday Blitz"]
[Site "Chess.com"]
[Date "2021.03.09"]
[Round "11"]
[White "JimmmyZhang"]
[Black "Sanan_Sjugirov"]
[Result "0-1"]
[WhiteElo "2496"]
[BlackElo "2900"]
[TimeControl "180+1"]
[EndTime "12:10:56 PST"]
[Termination "Sanan_Sjugirov won on time"]

1. Nf3 {[%clk 0:03:00.9]} 1... Nf6 {[%clk 0:02:56.8]} 2. d4 {[%clk 0:02:58.1]}
2... b6 {[%clk 0:02:55.8]} 3. Nc3 {[%clk 0:02:53.3]} 3... Bb7 {[%clk 0:02:55.5]}
4. e3 {[%clk 0:02:53]} 4... g6 {[%clk 0:02:52.5]} 5. Bd3 {[%clk 0:02:53.4]} 5...
c5 {[%clk 0:02:52]} 6. O-O {[%clk 0:02:53.1]} 6... Bg7 {[%clk 0:02:51.9]} 7. b3
{[%clk 0:02:46]} 7... O-O {[%clk 0:02:51.3]} 8. Bb2 {[%clk 0:02:46]} 8... d5
{[%clk 0:02:50]} 9. Qe2 {[%clk 0:02:43.2]} 9... Nc6 {[%clk 0:02:49.5]} 10. dxc5
{[%clk 0:02:40.3]} 10... bxc5 {[%clk 0:02:49.5]} 11. Na4 {[%clk 0:02:40.9]}
11... Qa5 {[%clk 0:02:46.8]} 12. Bc3 {[%clk 0:02:39.4]} 12... Qc7 {[%clk
0:02:41.2]} 13. Nxc5 {[%clk 0:02:33.6]} 13... Bc8 {[%clk 0:02:35]} 14. b4 {[%clk
0:02:17.1]} 14... Bg4 {[%clk 0:02:34]} 15. h3 {[%clk 0:02:13.1]} 15... Bxf3
{[%clk 0:02:33.5]} 16. Qxf3 {[%clk 0:02:10.6]} 16... Ng4 {[%clk 0:02:33.7]} 17.
Qxg4 {[%clk 0:01:59.2]} 17... Bxc3 {[%clk 0:02:27.7]} 18. Rab1 {[%clk
0:01:49.4]} 18... Nxb4 {[%clk 0:02:21.5]} 19. Rxb4 {[%clk 0:01:46.4]} 19... Qxc5
{[%clk 0:02:21.2]} 20. Rb3 {[%clk 0:01:45.3]} 20... e6 {[%clk 0:01:59.8]} 21.
Rfb1 {[%clk 0:01:43.1]} 21... Rac8 {[%clk 0:01:54.7]} 22. Qa4 {[%clk 0:01:41.4]}
22... Rc7 {[%clk 0:01:51.6]} 23. Qb5 {[%clk 0:01:40.6]} 23... Qd6 {[%clk
0:01:47.2]} 24. Qa6 {[%clk 0:01:32.7]} 24... Qxa6 {[%clk 0:01:29.7]} 25. Bxa6
{[%clk 0:01:31.2]} 25... Ba5 {[%clk 0:01:30.3]} 26. Bd3 {[%clk 0:01:28.9]} 26...
Bb6 {[%clk 0:01:30.4]} 27. a4 {[%clk 0:01:26.9]} 27... Rfc8 {[%clk 0:01:29.4]}
28. Rb5 {[%clk 0:01:24.9]} 28... Rc5 {[%clk 0:01:28.4]} 29. Rxc5 {[%clk
0:01:22.8]} 29... Rxc5 {[%clk 0:01:29.3]} 30. Rb5 {[%clk 0:01:22.9]} 30... Rc3
{[%clk 0:01:27.9]} 31. a5 {[%clk 0:01:14.1]} 31... Bc7 {[%clk 0:01:27.9]} 32. a6
{[%clk 0:01:12.6]} 32... Bb6 {[%clk 0:01:20.1]} 33. Kf1 {[%clk 0:01:09.7]} 33...
Ra3 {[%clk 0:01:17.8]} 34. Rb3 {[%clk 0:01:05.9]} 34... Ra4 {[%clk 0:01:16.7]}
35. Ke2 {[%clk 0:01:02.7]} 35... Kf8 {[%clk 0:01:16.3]} 36. f3 {[%clk 0:01:00]}
36... Ke7 {[%clk 0:01:15.7]} 37. Bb5 {[%clk 0:00:54.9]} 37... Ra5 {[%clk
0:01:14.4]} 38. Bd3 {[%clk 0:00:54.9]} 38... Kd6 {[%clk 0:01:14]} 39. e4 {[%clk
0:00:54.3]} 39... dxe4 {[%clk 0:01:08.2]} 40. fxe4 {[%clk 0:00:53]} 40... Ra4
{[%clk 0:01:01.3]} 41. Kf3 {[%clk 0:00:50.6]} 41... f5 {[%clk 0:00:59.6]} 42.
exf5 {[%clk 0:00:42.3]} 42... gxf5 {[%clk 0:00:58.1]} 43. g4 {[%clk 0:00:42.6]}
43... fxg4+ {[%clk 0:00:45.6]} 44. hxg4 {[%clk 0:00:42.3]} 44... h6 {[%clk
0:00:46.5]} 45. Rb1 {[%clk 0:00:39.8]} 45... e5 {[%clk 0:00:43]} 46. Rh1 {[%clk
0:00:36.5]} 46... Rf4+ {[%clk 0:00:41]} 47. Kg3 {[%clk 0:00:26.4]} 47... Bf2+
{[%clk 0:00:38.4]} 48. Kg2 {[%clk 0:00:26.7]} 48... Be3 {[%clk 0:00:33.8]} 49.
Rxh6+ {[%clk 0:00:24]} 49... Kd5 {[%clk 0:00:34.3]} 50. Rg6 {[%clk 0:00:15.4]}
50... e4 {[%clk 0:00:33.4]} 51. Bb5 {[%clk 0:00:15.2]} 51... Rf2+ {[%clk
0:00:28.7]} 52. Kg3 {[%clk 0:00:15.5]} 52... Rxc2 {[%clk 0:00:28.8]} 53. Be8
{[%clk 0:00:11.7]} 53... Ke5 {[%clk 0:00:26.5]} 54. g5 {[%clk 0:00:05.4]} 54...
Bf4+ {[%clk 0:00:25.8]} 55. Kg4 {[%clk 0:00:05.5]} 55... Rg2+ {[%clk 0:00:25]}
56. Kh5 {[%clk 0:00:06.1]} 56... e3 {[%clk 0:00:23.5]} 57. Rg7 {[%clk
0:00:04.1]} 57... Bxg5 {[%clk 0:00:14.7]} 58. Bb5 {[%clk 0:00:01.8]} 58... Kf5
{[%clk 0:00:05.3]} 59. Bd3+ {[%clk 0:00:01.2]} 59... Kf4 {[%clk 0:00:05.3]} 0-1